fUSD/lending_fUSD_20240525
["ID","MTS","AMOUNT","RATE_DAILY","PERIOD"]
[327907130,1716600676116,-562.16,0.00032876,5]
[327907131,1716600676125,-500.0,0.00032876,5]
[327907132,1716600676134,-500.0,0.00032876,5]
[327907133,1716600676143,-500.0,0.00032876,5]
[327907134,1716600676152,-500.0,0.00032876,5]
[327907135,1716600676162,-500.0,0.00032876,5]
[327907136,1716600676170,-500.0,0.00032876,5]
[327907137,1716600676179,-528.58,0.00032876,5]
[327907138,1716600676189,-500.0,0.00032876,5]
[327907139,1716600676199,-500.0,0.00032876,5]
[327907140,1716600676207,-500.0,0.00032876,5]
[327907141,1716600676217,-500.0,0.00032876,5]
[327907142,1716600676225,-500.0,0.00032876,5]
[327907143,1716600676234,-500.0,0.00032876,5]
[327907144,1716600676243,-500.0,0.00032876,5]
[327907145,1716600676253,-500.0,0.00032876,5]
[327907146,1716600676263,-586.18,0.00032876,5]
[327907147,1716600676274,-500.0,0.00032876,5]
[327907148,1716600676284,-500.0,0.00032876,5]
[327907149,1716600676293,-500.0,0.00032876,5]
[327907150,1716600676303,-500.0,0.00032876,5]
[327907151,1716600676312,-500.0,0.00032876,5]
[327907152,1716600676321,-666.62,0.00032876,5]
[327907153,1716600676330,-500.0,0.00032876,5]
[327907154,1716600676339,-500.0,0.00032876,5]
[327907155,1716600676349,-696.64,0.00032876,5]
[327907156,1716600676358,-500.0,0.00032876,5]
[327907157,1716600676367,-500.0,0.00032876,5]
[327907158,1716600676376,-500.0,0.00032876,5]
[327907159,1716600676385,-500.0,0.00032876,5]
[327907160,1716600676395,-500.0,0.00032876,5]
[327907161,1716600676404,-500.0,0.00032876,5]
[327907162,1716600676414,-500.0,0.00032876,5]
[327907163,1716600676423,-500.0,0.00032876,5]
[327907164,1716600676433,-500.0,0.00032876,5]
[327907165,1716600676442,-500.0,0.00032876,5]
[327907166,1716600676451,-882.49,0.00032876,5]
[327907167,1716600676460,-500.0,0.00032876,5]
[327907168,1716600676470,-1054.17,0.00032876,5]
[327907169,1716600676479,-500.0,0.00032876,5]
[327907170,1716600676488,-500.0,0.00032876,5]
[327907171,1716600676498,-500.0,0.00032876,5]
[327907172,1716600676507,-500.0,0.00032876,5]
[327907173,1716600676518,-512.57661163,0.00032876,5]
[327907174,1716600676528,-500.0,0.00032876,5]
[327907175,1716600676537,-500.0,0.00032876,5]
[327907176,1716600676546,-500.0,0.00032876,5]
[327907177,1716600676555,-500.0,0.00032876,5]
[327907178,1716600676564,-500.0,0.00032876,5]
[327907179,1716600676572,-500.0,0.00032876,5]
[327907180,1716600676582,-500.0,0.00032876,5]
[327907181,1716600676592,-500.0,0.00032876,5]
[327907182,1716600676601,-500.0,0.00032876,5]
[327907183,1716600676610,-500.0,0.00032876,5]
[327907184,1716600676619,-500.0,0.00032876,5]
[327907185,1716600676629,-1456.1,0.00032876,5]
[327907186,1716600676638,-500.0,0.00032876,5]
[327907187,1716600676647,-500.0,0.00032876,5]
[327907188,1716600676656,-500.0,0.00032876,5]
[327907189,1716600676665,-500.0,0.00032876,5]
[327907190,1716600676675,-500.0,0.00032876,5]
[327907191,1716600676685,-592.0012498,0.00032876,5]
[327907192,1716600676695,-500.0,0.00032876,5]
[327907193,1716600676705,-500.0,0.00032876,5]
[327907194,1716600676714,-500.0,0.00032876,5]
[327907195,1716600676724,-500.0,0.00032876,5]
[327907196,1716600676733,-500.0,0.00032876,5]
[327907197,1716600676742,-500.0,0.00032876,5]
[327907198,1716600676751,-500.0,0.00032876,5]
[327907199,1716600676760,-518.96161226,0.00032876,5]
[327907200,1716600676770,-500.0,0.00032876,5]
[327907201,1716600676779,-500.0,0.00032876,5]
[327907202,1716600676788,-500.0,0.00032876,5]
[327907203,1716600676797,-500.0,0.00032876,5]
[327907204,1716600676806,-500.0,0.00032876,5]
[327907205,1716600676815,-1942.04,0.00032876,5]
[327907206,1716600676823,-500.0,0.00032876,5]
[327907207,1716600676832,-500.0,0.00032876,5]
[327907208,1716600676842,-500.0,0.00032876,5]
[327907209,1716600676852,-500.0,0.00032876,5]
[327907210,1716600676862,-500.0,0.00032876,5]
[327907211,1716600676870,-500.0,0.00032876,5]
[327907212,1716600676879,-500.0,0.00032876,5]
[327907213,1716600676889,-500.0,0.00032876,5]
[327907214,1716600676898,-500.0,0.00032876,5]
[327907215,1716600676907,-644.8649709,0.00032876,5]
[327907216,1716600676916,-500.0,0.00032876,5]
[327907217,1716600676926,-151.48,0.00032898,2]
[327907218,1716600676935,-3750.0,0.000329,2]
[327907219,1716600676944,-1200.0,0.000329,2]
[327907220,1716600676957,-488.0,0.000329,2]
[327907221,1716600676967,-200.0,0.000329,2]
[327907222,1716600676976,-5523.76435624,0.000329,2]
[327907223,1716600676986,-1000.0,0.000329,2]
[327907224,1716600676996,-2000.0,0.000329,2]
[327907225,1716600677007,-500.0,0.000329,2]
[327907226,1716600677016,-1000.0,0.000329,2]
[327907227,1716600677029,-1386.16044054,0.000329,30]
[327907228,1716600677039,-1000.0,0.0003295,4]
[327907229,1716600677048,-248.44,0.00033041,2]
[327907230,1716600677058,-351.98,0.00033041,2]
[327907231,1716600677066,-260.8,0.0003315,2]
[327907232,1716600677076,-500.0,0.0003315,5]
[327907233,1716600677085,-536.04,0.0003315,5]
[327907234,1716600677094,-250.0,0.0003315,5]
[327907235,1716600677103,-500.0,0.0003315,5]
[327907236,1716600677113,-621.45,0.0003315,5]
[327907237,1716600677122,-500.0,0.0003315,5]
[327907238,1716600677131,-500.0,0.0003315,5]
[327907239,1716600677140,-277.59,0.0003315,5]
[327907240,1716600677150,-500.0,0.0003315,5]
[327907241,1716600677159,-500.0,0.0003315,5]
[327907242,1716600677168,-500.0,0.0003315,5]
[327907243,1716600677178,-500.0,0.0003315,5]
[327907244,1716600677187,-500.0,0.0003315,5]
[327907245,1716600677197,-500.0,0.0003315,5]
[327907246,1716600677206,-500.0,0.0003315,5]
[327907247,1716600677216,-500.0,0.0003315,5]
[327907248,1716600677225,-3154.47,0.0003315,5]
[327907249,1716600677235,-500.0,0.0003315,5]
[327907250,1716600677244,-272.9,0.0003315,5]
[327907251,1716600677253,-500.0,0.0003315,5]
[327907252,1716600677263,-500.0,0.0003315,5]
[327907253,1716600677272,-500.0,0.0003315,5]
[327907254,1716600677282,-500.0,0.0003315,5]
[327907255,1716600677291,-500.0,0.0003315,5]
[327907256,1716600677300,-500.0,0.0003315,5]
[327907257,1716600677310,-500.0,0.0003315,5]
[327907258,1716600677319,-500.0,0.0003315,5]
[327907259,1716600677328,-500.0,0.0003315,5]
[327907260,1716600677338,-500.0,0.0003315,5]
[327907261,1716600677347,-1165.42,0.0003315,5]
[327907262,1716600677356,-500.0,0.0003315,5]
[327907263,1716600677366,-602.45,0.0003315,5]
[327907264,1716600677375,-338.25,0.0003315,5]
[327907265,1716600677384,-584.19,0.0003315,5]
[327907266,1716600677394,-500.0,0.0003315,5]
[327907267,1716600677404,-1223.33,0.0003315,5]
[327907268,1716600677414,-500.0,0.0003315,5]
[327907269,1716600677423,-500.0,0.0003315,5]
[327907270,1716600677433,-500.0,0.0003315,5]
[327907271,1716600677443,-500.0,0.0003315,5]
[327907272,1716600677453,-500.0,0.0003315,5]
[327907273,1716600677462,-500.0,0.0003315,5]
[327907274,1716600677472,-500.0,0.0003315,5]
[327907275,1716600677482,-1067.41,0.0003315,5]
[327907276,1716600677491,-294.96,0.0003315,5]
[327907277,1716600677501,-610.16,0.0003315,5]
[327907278,1716600677510,-500.0,0.0003315,5]
[327907279,1716600677521,-500.0,0.0003315,5]
[327907280,1716600677530,-500.0,0.0003315,5]
[327907281,1716600677540,-500.0,0.0003315,5]
[327907282,1716600677549,-500.0,0.0003315,5]
[327907283,1716600677558,-500.0,0.0003315,5]
[327907284,1716600677568,-500.0,0.0003315,5]
[327907285,1716600677577,-500.0,0.0003315,5]
[327907286,1716600677587,-2974.64,0.0003315,5]
[327907287,1716600677597,-500.0,0.0003315,5]
[327907288,1716600677606,-500.0,0.0003315,5]
[327907289,1716600677615,-223.74,0.0003315,5]
[327907290,1716600677625,-500.0,0.0003315,5]
[327907291,1716600677634,-500.0,0.0003315,5]
[327907292,1716600677644,-500.0,0.0003315,5]
[327907293,1716600677654,-500.0,0.0003315,5]
[327907294,1716600677664,-500.0,0.0003315,5]
[327907295,1716600677673,-511.03866349,0.0003315,5]
[327907296,1716600677682,-500.0,0.0003315,5]
[327907297,1716600677691,-528.58,0.0003315,5]
[327907298,1716600677701,-500.0,0.0003315,5]
[327907299,1716600677710,-158.68394825,0.0003315,5]
[327907300,1716600677720,-500.0,0.0003315,5]
[327907301,1716600677729,-500.0,0.0003315,5]
[327907302,1716600677739,-500.0,0.0003315,5]
[327907303,1716600677749,-586.18,0.0003315,5]
[327907304,1716600677758,-500.0,0.0003315,5]
[327907305,1716600677769,-500.0,0.0003315,5]
[327907306,1716600677778,-500.0,0.0003315,5]
[327907307,1716600677787,-486.9,0.0003315,5]
[327907308,1716600677796,-666.62,0.0003315,5]
[327907309,1716600677805,-500.0,0.0003315,5]
[327907310,1716600677815,-500.0,0.0003315,5]
[327907311,1716600677824,-696.64,0.0003315,5]
[327907312,1716600677834,-500.0,0.0003315,5]
[327907313,1716600677844,-500.0,0.0003315,5]
[327907314,1716600677853,-500.0,0.0003315,5]
[327907315,1716600677868,-500.0,0.0003315,5]
[327907316,1716600677878,-500.0,0.0003315,5]
[327907317,1716600677887,-500.0,0.0003315,5]
[327907318,1716600677897,-500.0,0.0003315,5]
[327907319,1716600677906,-500.0,0.0003315,5]
[327907320,1716600677916,-500.0,0.0003315,5]
[327907321,1716600677925,-500.0,0.0003315,5]
[327907322,1716600677935,-882.49,0.0003315,5]
[327907323,1716600677945,-500.0,0.0003315,5]
[327907324,1716600677957,-1054.17,0.0003315,5]
[327907325,1716600677967,-500.0,0.0003315,5]
[327907326,1716600677976,-500.0,0.0003315,5]
[327907327,1716600677986,-500.0,0.0003315,5]
[327907328,1716600677995,-513.44053474,0.0003315,5]
[327907329,1716600678005,-500.0,0.0003315,5]
[327907330,1716600678015,-500.0,0.0003315,5]
[327907331,1716600678025,-500.0,0.0003315,5]
[327907332,1716600678035,-500.0,0.0003315,5]
[327907333,1716600678044,-500.0,0.0003315,5]
[327907334,1716600678054,-500.0,0.0003315,5]
[327907335,1716600678064,-513.87681195,0.0003315,5]
[327907336,1716600678074,-600.76039007,0.0003315,5]
[327907337,1716600678083,-510.15051974,0.0003315,5]
[327907338,1716600678092,-500.0,0.0003315,5]
[327907339,1716600678102,-515.08231328,0.0003315,5]
[327907340,1716600678111,-1456.1,0.0003315,5]
[327907341,1716600678121,-534.61483163,0.0003315,5]
[327907342,1716600678130,-500.0,0.0003315,5]
[327907343,1716600678140,-518.4781855,0.0003315,5]
[327907344,1716600678149,-406.60070464,0.0003315,5]
[327907345,1716600678159,-355.79087971,0.0003315,5]
[327907346,1716600678168,-526.72859927,0.0003315,5]
[327907347,1716600678178,-521.51655404,0.0003315,5]
[327907348,1716600678187,-500.0,0.0003315,5]
[327907349,1716600678198,-500.0,0.0003315,5]
[327907350,1716600678207,-531.29061994,0.0003315,5]
[327907351,1716600678217,-628.56930193,0.0003315,5]
[327907352,1716600678227,-647.56334459,0.0003315,5]
[327907353,1716600678237,-522.75135941,0.0003315,5]
[327907354,1716600678247,-514.97067511,0.0003315,5]
[327907355,1716600678257,-586.04452117,0.0003315,5]
[327907356,1716600678266,-541.10352996,0.0003315,5]
[327907357,1716600678277,-500.0,0.0003315,5]
[327907358,1716600678286,-1942.04,0.0003315,5]
[327907359,1716600678296,-500.0,0.0003315,5]
[327907360,1716600678305,-500.0,0.0003315,5]
[327907361,1716600678314,-529.20979101,0.0003315,5]
[327907362,1716600678324,-519.00611829,0.0003315,5]
[327907363,1716600678448,-500.0,0.0003315,5]
[327907364,1716600678459,-529.77396067,0.0003315,5]
[327907365,1716600678468,-500.0,0.0003315,5]
[327907366,1716600678477,-500.0,0.0003315,5]
[327907367,1716600678487,-526.42389764,0.0003315,5]
[327907368,1716600678496,-495.45,0.00033151,120]
[327907369,1716600678506,-36468.40324491,0.00033355,5]
[327907370,1716600678516,-215.296461,0.00033355,7]
[327907371,1716600678527,-215.296461,0.00033355,7]
[327907372,1716600678537,-151.0,0.00033355,7]
[327907373,1716600678546,-151.0,0.00033355,7]
[327907374,1716600678556,-395.469425,0.00033355,7]
[327907375,1716600678565,-395.469425,0.00033355,7]
[327907376,1716600678575,-169.027782,0.00033355,7]
[327907377,1716600678585,-386.551213,0.00033355,7]
[327907378,1716600678594,-169.027782,0.00033355,7]
[327907379,1716600678604,-386.551213,0.00033355,7]
[327907380,1716600678614,-281.662772,0.00033355,7]
[327907381,1716600678622,-281.662772,0.00033355,7]
[327907382,1716600678632,-263.840629,0.00033355,7]
[327907383,1716600678641,-263.840629,0.00033355,7]
[327907384,1716600678650,-156.81,0.00033379,2]
[327907385,1716600678660,-458.62,0.00033424,5]
[327907386,1716600678669,-250.0,0.00033424,5]
[327907387,1716600678679,-500.0,0.00033424,5]
[327907388,1716600678688,-621.45,0.00033424,5]
[327907389,1716600678697,-345.22,0.00033424,5]
[327907390,1716600678706,-500.0,0.00033424,5]
[327907391,1716600678716,-595.88,0.00033424,5]
[327907392,1716600678726,-500.0,0.00033424,5]
[327907393,1716600678735,-500.0,0.00033424,5]
[327907394,1716600678744,-500.0,0.00033424,5]
[327907395,1716600678754,-302.8,0.00033424,5]
[327907396,1716600678765,-500.0,0.00033424,5]
[327907397,1716600678775,-500.0,0.00033424,5]
[327907398,1716600678784,-500.0,0.00033424,5]
[327907399,1716600678794,-3154.47,0.00033424,5]
[327907400,1716600678804,-500.0,0.00033424,5]
[327907401,1716600678813,-500.0,0.00033424,5]
[327907402,1716600678823,-500.0,0.00033424,5]
[327907403,1716600678832,-277.4,0.00033424,5]
[327907404,1716600678841,-458.3,0.00033424,5]
[327907405,1716600678850,-206.1,0.00033424,5]
[327907406,1716600678859,-500.0,0.00033424,5]
[327907407,1716600678868,-584.15,0.00033424,5]
[327907408,1716600678877,-500.0,0.00033424,5]
[327907409,1716600678887,-500.0,0.00033424,5]
[327907410,1716600678896,-500.0,0.00033424,5]
[327907411,1716600678906,-1165.42,0.00033424,5]
[327907412,1716600678915,-500.0,0.00033424,5]
[327907413,1716600678924,-602.45,0.00033424,5]
[327907414,1716600678934,-584.19,0.00033424,5]
[327907415,1716600678945,-500.0,0.00033424,5]
[327907416,1716600678958,-1223.33,0.00033424,5]
[327907417,1716600678967,-576.2,0.00033424,5]
[327907418,1716600678977,-500.0,0.00033424,5]
[327907419,1716600678986,-565.85,0.00033424,5]
[327907420,1716600678997,-500.0,0.00033424,5]
[327907421,1716600679006,-500.0,0.00033424,5]
[327907422,1716600679015,-500.0,0.00033424,5]
[327907423,1716600679027,-500.0,0.00033424,5]
[327907424,1716600679039,-1067.41,0.00033424,5]
[327907425,1716600679048,-610.16,0.00033424,5]
[327907426,1716600679057,-152.38,0.00033424,5]
[327907427,1716600679066,-500.0,0.00033424,5]
[327907428,1716600679076,-500.0,0.00033424,5]
[327907429,1716600679086,-500.0,0.00033424,5]
[327907430,1716600679095,-500.0,0.00033424,5]
[327907431,1716600679104,-500.0,0.00033424,5]
[327907432,1716600679113,-500.0,0.00033424,5]
[327907433,1716600679123,-500.0,0.00033424,5]
[327907434,1716600679133,-2974.64,0.00033424,5]
[327907435,1716600679142,-500.0,0.00033424,5]
[327907436,1716600679151,-500.0,0.00033424,5]
[327907437,1716600679160,-500.0,0.00033424,5]
[327907438,1716600679170,-500.0,0.00033424,5]
[327907439,1716600679179,-500.0,0.00033424,5]
[327907440,1716600679188,-500.0,0.00033424,5]
[327907441,1716600679197,-500.0,0.00033424,5]
[327907442,1716600679207,-528.58,0.00033424,5]
[327907443,1716600679216,-500.0,0.00033424,5]
[327907444,1716600679225,-586.18,0.00033424,5]
[327907445,1716600679235,-500.0,0.00033424,5]
[327907446,1716600679244,-500.0,0.00033424,5]
[327907447,1716600679253,-666.62,0.00033424,5]
[327907448,1716600679263,-500.0,0.00033424,5]
[327907449,1716600679274,-500.0,0.00033424,5]
[327907450,1716600679283,-696.64,0.00033424,5]
[327907451,1716600679292,-500.0,0.00033424,5]
[327907452,1716600679302,-500.0,0.00033424,5]
[327907453,1716600679311,-500.0,0.00033424,5]
[327907454,1716600679320,-500.0,0.00033424,5]
[327907455,1716600679329,-414.04,0.00033424,5]
[327907456,1716600679338,-500.0,0.00033424,5]
[327907457,1716600679348,-882.49,0.00033424,5]
[327907458,1716600679357,-500.0,0.00033424,5]
[327907459,1716600679366,-1054.17,0.00033424,5]
[327907460,1716600679376,-500.0,0.00033424,5]
[327907461,1716600679385,-500.0,0.00033424,5]
[327907462,1716600679394,-500.0,0.00033424,5]
[327907463,1716600679403,-500.0,0.00033424,5]
[327907464,1716600679413,-500.0,0.00033424,5]
[327907465,1716600679422,-500.0,0.00033424,5]
[327907466,1716600679432,-500.0,0.00033424,5]
[327907467,1716600679441,-1456.1,0.00033424,5]
[327907468,1716600679450,-500.0,0.00033424,5]
[327907469,1716600679460,-500.0,0.00033424,5]
[327907470,1716600679469,-500.0,0.00033424,5]
[327907471,1716600679478,-500.0,0.00033424,5]
[327907472,1716600679487,-1942.04,0.00033424,5]
[327907473,1716600679496,-500.0,0.00033424,5]
[327907474,1716600679505,-522.73018862,0.00033424,5]
[327907475,1716600679514,-500.0,0.00033424,5]
[327907476,1716600679527,-517.70395262,0.00033424,5]
[327907477,1716600679536,-521.82685617,0.00033424,5]
[327907478,1716600679544,-201.9932009,0.00033669,120]
[327907479,1716600679553,-193.0,0.00033669,4]
[327907480,1716600679562,-1996.0,0.00033669,4]
[327907481,1716600679571,-465.7802,0.00033669,30]
[327907482,1716600679580,-153.687288,0.00033698,7]
[327907483,1716600679589,-250.0,0.00033698,5]
[327907484,1716600679598,-500.0,0.00033698,5]
[327907485,1716600679608,-621.45,0.00033698,5]
[327907486,1716600679617,-500.0,0.00033698,5]
[327907487,1716600679626,-500.0,0.00033698,5]
[327907488,1716600679635,-500.0,0.00033698,5]
[327907489,1716600679644,-500.0,0.00033698,5]
[327907490,1716600679654,-500.0,0.00033698,5]
[327907491,1716600679663,-500.0,0.00033698,5]
[327907492,1716600679672,-500.0,0.00033698,5]
[327907493,1716600679682,-3154.47,0.00033698,5]
[327907494,1716600679691,-500.0,0.00033698,5]
[327907495,1716600679700,-237.5,0.00033698,5]
[327907496,1716600679710,-500.0,0.00033698,5]
[327907497,1716600679719,-500.0,0.00033698,5]
[327907498,1716600679728,-500.0,0.00033698,5]
[327907499,1716600679738,-548.54,0.00033698,5]
[327907500,1716600679747,-500.0,0.00033698,5]
[327907501,1716600679757,-1165.42,0.00033698,5]
[327907502,1716600679766,-490.65,0.00033698,5]
[327907503,1716600679779,-602.45,0.00033698,5]
[327907504,1716600679790,-584.19,0.00033698,5]
[327907505,1716600679799,-500.0,0.00033698,5]
[327907506,1716600679808,-1223.33,0.00033698,5]
[327907507,1716600679817,-500.0,0.00033698,5]
[327907508,1716600679827,-500.0,0.00033698,5]
[327907509,1716600679836,-572.95,0.00033698,5]
[327907510,1716600679845,-572.9,0.00033698,5]
[327907511,1716600679854,-500.0,0.00033698,5]
[327907512,1716600679863,-1067.41,0.00033698,5]
[327907513,1716600679872,-610.16,0.00033698,5]
[327907514,1716600679881,-151.0,0.00033698,7]
[327907515,1716600679890,-151.0,0.00033698,7]
[327907516,1716600679900,-500.0,0.00033698,5]
[327907517,1716600679909,-500.0,0.00033698,5]
[327907518,1716600679919,-500.0,0.00033698,5]
[327907519,1716600679928,-500.0,0.00033698,5]
[327907520,1716600679938,-500.0,0.00033698,5]
[327907521,1716600679947,-500.0,0.00033698,5]
[327907522,1716600679961,-2887.729861,0.00033698,7]
[327907523,1716600679970,-500.0,0.00033698,5]
[327907524,1716600679979,-2974.64,0.00033698,5]
[327907525,1716600679988,-2887.729861,0.00033698,7]
[327907526,1716600679997,-206.156782,0.00033698,7]
[327907527,1716600680007,-500.0,0.00033698,5]
[327907528,1716600680017,-206.156782,0.00033698,7]
[327907529,1716600680027,-500.0,0.00033698,5]
[327907530,1716600680037,-500.0,0.00033698,5]
[327907531,1716600680046,-500.0,0.00033698,5]
[327907532,1716600680055,-500.0,0.00033698,5]
[327907533,1716600680065,-500.0,0.00033698,5]
[327907534,1716600680074,-500.0,0.00033698,5]
[327907535,1716600680083,-528.58,0.00033698,5]
[327907536,1716600680093,-151.0,0.00033698,7]
[327907537,1716600680102,-151.0,0.00033698,7]
[327907538,1716600680112,-500.0,0.00033698,5]
[327907539,1716600680121,-586.18,0.00033698,5]
[327907540,1716600680130,-500.0,0.00033698,5]
[327907541,1716600680139,-500.0,0.00033698,5]
[327907542,1716600680149,-666.62,0.00033698,5]
[327907543,1716600680158,-500.0,0.00033698,5]
[327907544,1716600680167,-500.0,0.00033698,5]
[327907545,1716600680177,-696.64,0.00033698,5]
[327907546,1716600680187,-500.0,0.00033698,5]
[327907547,1716600680197,-500.0,0.00033698,5]
[327907548,1716600680206,-500.0,0.00033698,5]
[327907549,1716600680216,-500.0,0.00033698,5]
[327907550,1716600680226,-500.0,0.00033698,5]
[327907551,1716600680235,-882.49,0.00033698,5]
[327907552,1716600680245,-500.0,0.00033698,5]
[327907553,1716600680256,-1054.17,0.00033698,5]
[327907554,1716600680266,-457.46,0.00033698,5]
[327907555,1716600680278,-500.0,0.00033698,5]
[327907556,1716600680287,-500.0,0.00033698,5]
[327907557,1716600680296,-500.0,0.00033698,5]
[327907558,1716600680306,-500.0,0.00033698,5]
[327907559,1716600680316,-500.0,0.00033698,5]
[327907560,1716600680325,-500.0,0.00033698,5]
[327907561,1716600680335,-1456.1,0.00033698,5]
[327907562,1716600680344,-500.0,0.00033698,5]
[327907563,1716600680353,-500.0,0.00033698,5]
[327907564,1716600680363,-500.0,0.00033698,5]
[327907565,1716600680372,-500.0,0.00033698,5]
[327907566,1716600680381,-1942.04,0.00033698,5]
[327907567,1716600680391,-500.0,0.00033698,5]
[327907568,1716600680400,-500.0,0.00033698,5]
[327907569,1716600680409,-198.0,0.00033868,2]
[327907570,1716600680418,-250.0,0.00033972,5]
[327907571,1716600680427,-500.0,0.00033972,5]
[327907572,1716600680436,-621.45,0.00033972,5]
[327907573,1716600680446,-500.0,0.00033972,5]
[327907574,1716600680455,-499.99699999,0.00033972,5]
[327907575,1716600680464,-500.0,0.00033972,5]
[327907576,1716600680473,-500.0,0.00033972,5]
[327907577,1716600680482,-500.0,0.00033972,5]
[327907578,1716600680492,-500.0,0.00033972,5]
[327907579,1716600680501,-262.5,0.00033972,5]
[327907580,1716600680510,-3154.47,0.00033972,5]
[327907581,1716600680521,-455.7,0.00033972,5]
[327907582,1716600680531,-500.0,0.00033972,5]
[327907583,1716600680540,-500.0,0.00033972,5]
[327907584,1716600680549,-500.0,0.00033972,5]
[327907585,1716600680558,-500.0,0.00033972,5]
[327907586,1716600680567,-1165.42,0.00033972,5]
[327907587,1716600680577,-602.45,0.00033972,5]
[327907588,1716600680586,-584.19,0.00033972,5]
[327907589,1716600680595,-500.0,0.00033972,5]
[327907590,1716600680604,-1223.33,0.00033972,5]
[327907591,1716600680614,-551.9990106,0.00033972,5]
[327907592,1716600680623,-500.0,0.00033972,5]
[327907593,1716600680632,-156.25,0.00033972,5]
[327907594,1716600680641,-1067.41,0.00033972,5]
[327907595,1716600680650,-610.16,0.00033972,5]
[327907596,1716600680659,-366.65,0.00033972,5]
[327907597,1716600680670,-500.0,0.00033972,5]
[327907598,1716600680680,-500.0,0.00033972,5]
[327907599,1716600680690,-500.0,0.00033972,5]
[327907600,1716600680700,-500.0,0.00033972,5]
[327907601,1716600680709,-451.92,0.00033972,5]
[327907602,1716600680718,-500.0,0.00033972,5]
[327907603,1716600680727,-2974.64,0.00033972,5]
[327907604,1716600680737,-500.0,0.00033972,5]
[327907605,1716600680745,-500.0,0.00033972,5]
[327907606,1716600680755,-602.34,0.00033972,5]
[327907607,1716600680764,-500.0,0.00033972,5]
[327907608,1716600680775,-500.0,0.00033972,5]
[327907609,1716600680784,-500.0,0.00033972,5]
[327907610,1716600680792,-500.0,0.00033972,5]
[327907611,1716600680801,-528.58,0.00033972,5]
[327907612,1716600680811,-603.63,0.00033972,5]
[327907613,1716600680820,-586.18,0.00033972,5]
[327907614,1716600680829,-500.0,0.00033972,5]
[327907615,1716600680838,-500.0,0.00033972,5]
[327907616,1716600680847,-666.62,0.00033972,5]
[327907617,1716600680856,-500.0,0.00033972,5]
[327907618,1716600680866,-500.0,0.00033972,5]
[327907619,1716600680875,-696.64,0.00033972,5]
[327907620,1716600680884,-500.0,0.00033972,5]
[327907621,1716600680894,-500.0,0.00033972,5]
[327907622,1716600680903,-500.0,0.00033972,5]
[327907623,1716600680912,-500.0,0.00033972,5]
[327907624,1716600680922,-630.44,0.00033972,5]
[327907625,1716600680931,-882.49,0.00033972,5]
[327907626,1716600680940,-500.0,0.00033972,5]
[327907627,1716600680953,-1054.17,0.00033972,5]
[327907628,1716600680962,-181.11,0.00033972,5]
[327907629,1716600680971,-500.0,0.00033972,5]